[Event "Titled Tuesday Blitz March 07 Early 2023"]
[White "Larina, Maria"]
[Black "Shapiro, Viktor"]
[WhiteFideId "24113182"]
[BlackFideId "4175700"]
[WhiteElo "1848"]
[BlackElo "2152"]
[Result "0-1"]
[Round "08"]
[TimeControl "180+2"]
[Date "2023.03.07"]
[WhiteClock "0:00:02"]
[BlackClock "0:00:51"]

1. e4 {[%clk 0:03:00]}  Nf6 {[%clk 0:02:59]} 2. Nc3 {[%clk 0:03:00]}  d5 {[%clk 0:02:59]} 3. e5 {[%clk 0:02:55]}  Nfd7 {[%clk 0:02:58]} 4. Nxd5 {[%clk 0:02:55]}  Nxe5 {[%clk 0:02:58]} 5. Ne3 {[%clk 0:02:56]}  c5 {[%clk 0:02:58]} 6. Nf3 {[%clk 0:02:56]}  Nbc6 {[%clk 0:02:58]} 7. Nxe5 {[%clk 0:02:56]}  Nxe5 {[%clk 0:02:58]} 8. b3 {[%clk 0:02:54]}  g6 {[%clk 0:02:54]} 9. Bb2 {[%clk 0:02:53]}  Bg7 {[%clk 0:02:54]} 10. Bb5+ {[%clk 0:02:37]}  Bd7 {[%clk 0:02:54]} 11. Bxd7+ {[%clk 0:02:37]}  Qxd7 {[%clk 0:02:54]} 12. Rb1 {[%clk 0:02:35]}  O-O {[%clk 0:02:53]} 13. O-O {[%clk 0:02:34]}  Rad8 {[%clk 0:02:53]} 14. d3 {[%clk 0:02:30]}  e6 {[%clk 0:02:47]} 15. f4 {[%clk 0:01:59]}  Nc6 {[%clk 0:02:46]} 16. Bxg7 {[%clk 0:01:58]}  Kxg7 {[%clk 0:02:47]} 17. Kh1 {[%clk 0:01:26]}  b5 {[%clk 0:02:36]} 18. Qg4 {[%clk 0:01:20]}  f5 {[%clk 0:02:35]} 19. Qg3 {[%clk 0:01:15]}  Nd4 {[%clk 0:02:26]} 20. Rbe1 {[%clk 0:01:14]}  a6 {[%clk 0:01:55]} 21. Rf2 {[%clk 0:01:11]}  Rfe8 {[%clk 0:01:54]} 22. h4 {[%clk 0:00:55]}  Kh8 {[%clk 0:01:51]} 23. Qg5 {[%clk 0:00:39]}  Qg7 {[%clk 0:01:45]} 24. Nd1 {[%clk 0:00:19]}  h6 {[%clk 0:01:43]} 25. Qg3 {[%clk 0:00:18]}  Qf6 {[%clk 0:01:37]} 26. Qh3 {[%clk 0:00:17]}  Kg7 {[%clk 0:01:26]} 27. Rd2 {[%clk 0:00:12]}  g5 {[%clk 0:01:21]} 28. fxg5 {[%clk 0:00:11]}  hxg5 {[%clk 0:01:21]} 29. h5 {[%clk 0:00:10]}  g4 {[%clk 0:01:21]} 30. Qh2 {[%clk 0:00:10]}  Rh8 {[%clk 0:01:20]} 31. Kg1 {[%clk 0:00:09]}  Rd7 {[%clk 0:01:14]} 32. c3 {[%clk 0:00:08]}  Nc6 {[%clk 0:01:14]} 33. Qf4 {[%clk 0:00:06]}  Rxh5 {[%clk 0:01:12]} 34. g3 {[%clk 0:00:06]}  Qh6 {[%clk 0:01:09]} 35. Qxh6+ {[%clk 0:00:06]}  Rxh6 {[%clk 0:01:09]} 36. Nf2 {[%clk 0:00:05]}  Kf7 {[%clk 0:01:09]} 37. Rde2 {[%clk 0:00:05]}  Rd6 {[%clk 0:01:06]} 38. Re3 {[%clk 0:00:05]}  Rh8 {[%clk 0:01:05]} 39. R1e2 {[%clk 0:00:05]}  Rhd8 {[%clk 0:01:05]} 40. Kg2 {[%clk 0:00:05]}  b4 {[%clk 0:01:06]} 41. cxb4 {[%clk 0:00:02]}  Nxb4 {[%clk 0:01:05]} 42. Re5 {[%clk 0:00:02]}  Rc6 {[%clk 0:01:02]} 43. Rd2 {[%clk 0:00:01]}  Rd5 {[%clk 0:01:02]} 44. Rxd5 {[%clk 0:00:02]}  Nxd5 {[%clk 0:01:02]} 45. Nd1 {[%clk 0:00:02]}  Ke7 {[%clk 0:01:00]} 46. Kf2 {[%clk 0:00:03]}  Kd6 {[%clk 0:01:00]} 47. Ne3 {[%clk 0:00:03]}  Nxe3 {[%clk 0:00:59]} 48. Kxe3 {[%clk 0:00:03]}  Kd5 {[%clk 0:00:59]} 49. d4 {[%clk 0:00:04]}  c4 {[%clk 0:00:59]} 50. bxc4+ {[%clk 0:00:04]}  Rxc4 {[%clk 0:00:59]} 51. Kf2 {[%clk 0:00:04]}  Rc3 {[%clk 0:00:59]} 52. Rb2 {[%clk 0:00:04]}  a5 {[%clk 0:00:58]} 53. Rb5+ {[%clk 0:00:05]}  Kxd4 {[%clk 0:00:58]} 54. Rxa5 {[%clk 0:00:05]}  e5 {[%clk 0:00:57]} 55. Ra4+ {[%clk 0:00:05]}  Rc4 {[%clk 0:00:58]} 56. Ra5 {[%clk 0:00:05]}  Rc2+ {[%clk 0:00:57]} 57. Kf1 {[%clk 0:00:04]}  Ke4 {[%clk 0:00:56]} 58. Ra4+ {[%clk 0:00:04]}  Kd3 {[%clk 0:00:55]} 59. Ra3+ {[%clk 0:00:04]}  Rc3 {[%clk 0:00:56]} 60. Ra5 {[%clk 0:00:05]}  Ke4 {[%clk 0:00:56]} 61. Ra4+ {[%clk 0:00:05]}  Kf3 {[%clk 0:00:55]} 62. Ke1 {[%clk 0:00:04]}  Kxg3 {[%clk 0:00:54]} 63. Ra5 {[%clk 0:00:04]}  Re3+ {[%clk 0:00:53]} 64. Kd2 {[%clk 0:00:05]}  Kf3 {[%clk 0:00:53]} 65. Rc5 {[%clk 0:00:03]}  g3 {[%clk 0:00:53]} 66. a4 {[%clk 0:00:03]}  g2 {[%clk 0:00:53]} 67. Rc1 {[%clk 0:00:04]}  Re2+ {[%clk 0:00:53]} 68. Kd3 {[%clk 0:00:04]}  e4+ {[%clk 0:00:53]} 69. Kd4 {[%clk 0:00:04]}  Rd2+ {[%clk 0:00:52]} 70. Kc3 {[%clk 0:00:04]}  Ra2 {[%clk 0:00:51]} 71. Rb1 {[%clk 0:00:02]} 0-1


[Site "https://www.chess.com"]

[Event "Titled Tuesday Blitz March 07 Early 2023"]
[White "Oro, Faustino"]
[Black "Grunberg, Mihai-Lucian"]
[WhiteFideId "20000197"]
[BlackFideId "1204149"]
[WhiteElo "1984"]
[BlackElo "2363"]
[Result "0-1"]
[Round "08"]
[TimeControl "180+2"]
[Date "2023.03.07"]
[WhiteClock "0:00:04"]
[BlackClock "0:00:57"]

1. Nf3 {[%clk 0:03:00]}  Nf6 {[%clk 0:03:00]} 2. g3 {[%clk 0:03:00]}  g6 {[%clk 0:03:00]} 3. Bg2 {[%clk 0:03:01]}  Bg7 {[%clk 0:03:01]} 4. O-O {[%clk 0:03:02]}  O-O {[%clk 0:03:02]} 5. d4 {[%clk 0:03:01]}  c5 {[%clk 0:03:03]} 6. dxc5 {[%clk 0:02:58]}  Na6 {[%clk 0:03:02]} 7. c3 {[%clk 0:02:57]}  Nxc5 {[%clk 0:03:02]} 8. Nbd2 {[%clk 0:02:57]}  d6 {[%clk 0:03:01]} 9. Nb3 {[%clk 0:02:52]}  Qc7 {[%clk 0:02:47]} 10. h3 {[%clk 0:02:46]}  Bd7 {[%clk 0:02:42]} 11. Be3 {[%clk 0:02:40]}  Rfd8 {[%clk 0:02:37]} 12. Nfd2 {[%clk 0:02:34]}  Rac8 {[%clk 0:02:28]} 13. Bd4 {[%clk 0:01:56]}  Bc6 {[%clk 0:02:24]} 14. Nf3 {[%clk 0:01:50]}  Ne6 {[%clk 0:02:19]} 15. Be3 {[%clk 0:01:45]}  a6 {[%clk 0:02:16]} 16. a4 {[%clk 0:01:38]}  b5 {[%clk 0:02:14]} 17. a5 {[%clk 0:01:36]}  Qb7 {[%clk 0:01:59]} 18. Nbd2 {[%clk 0:01:22]}  Nd5 {[%clk 0:01:57]} 19. Bd4 {[%clk 0:01:15]}  Nxd4 {[%clk 0:01:54]} 20. cxd4 {[%clk 0:01:15]}  e5 {[%clk 0:01:44]} 21. dxe5 {[%clk 0:00:47]}  dxe5 {[%clk 0:01:43]} 22. Qb3 {[%clk 0:00:48]}  Ne7 {[%clk 0:01:35]} 23. Rfd1 {[%clk 0:00:28]}  h6 {[%clk 0:01:30]} 24. Ne1 {[%clk 0:00:25]}  Bxg2 {[%clk 0:01:28]} 25. Nxg2 {[%clk 0:00:25]}  Nf5 {[%clk 0:01:25]} 26. e3 {[%clk 0:00:24]}  e4 {[%clk 0:01:04]} 27. Nf4 {[%clk 0:00:20]}  g5 {[%clk 0:01:03]} 28. Nh5 {[%clk 0:00:20]}  Rd3 {[%clk 0:01:02]} 29. Qa2 {[%clk 0:00:13]}  Rcd8 {[%clk 0:00:59]} 30. g4 {[%clk 0:00:05]}  Nh4 {[%clk 0:00:57]} 31. Nxg7 {[%clk 0:00:04]}  Kxg7 {[%clk 0:00:57]} 0-1


[Site "https://www.chess.com"]

[Event "Titled Tuesday Blitz March 07 Early 2023"]
[White "Mamedov, Edgar"]
[Black "Bozorov, Makhsum"]
[WhiteFideId "13739980"]
[BlackFideId "14201330"]
[WhiteElo "2330"]
[BlackElo "2467"]
[Result "1-0"]
[Round "08"]
[TimeControl "180+2"]
[Date "2023.03.07"]
[WhiteClock "0:01:39"]
[BlackClock "0:02:10"]

1. d4 {[%clk 0:02:59]}  Nf6 {[%clk 0:02:59]} 2. Bg5 {[%clk 0:02:59]}  Ne4 {[%clk 0:02:58]} 3. Bf4 {[%clk 0:02:58]}  d5 {[%clk 0:02:59]} 4. e3 {[%clk 0:02:57]}  c5 {[%clk 0:02:58]} 5. Bd3 {[%clk 0:02:52]}  Nf6 {[%clk 0:02:57]} 6. Nc3 {[%clk 0:02:51]}  Nc6 {[%clk 0:02:51]} 7. Nb5 {[%clk 0:02:43]}  c4 {[%clk 0:02:41]} 8. Nc7+ {[%clk 0:02:32]}  Kd7 {[%clk 0:02:40]} 9. Nxa8 {[%clk 0:02:25]}  cxd3 {[%clk 0:02:38]} 10. Qxd3 {[%clk 0:02:24]}  e6 {[%clk 0:02:24]} 11. Nf3 {[%clk 0:02:19]}  Nh5 {[%clk 0:02:22]} 12. Ne5+ {[%clk 0:02:09]}  Nxe5 {[%clk 0:02:20]} 13. Bxe5 {[%clk 0:02:09]}  f6 {[%clk 0:02:20]} 14. Bc7 {[%clk 0:02:04]}  Qe8 {[%clk 0:02:19]} 15. Qb5+ {[%clk 0:01:58]}  Ke7 {[%clk 0:02:19]} 16. Bd6+ {[%clk 0:01:57]}  Kf7 {[%clk 0:02:18]} 17. Qxe8+ {[%clk 0:01:55]}  Kxe8 {[%clk 0:02:18]} 18. Bxf8 {[%clk 0:01:55]}  Rxf8 {[%clk 0:02:16]} 19. Nc7+ {[%clk 0:01:54]}  Kd7 {[%clk 0:02:13]} 20. Nb5 {[%clk 0:01:53]}  f5 {[%clk 0:02:13]} 21. O-O-O {[%clk 0:01:46]}  a6 {[%clk 0:02:12]} 22. Nc3 {[%clk 0:01:44]}  b5 {[%clk 0:02:13]} 23. Ne2 {[%clk 0:01:41]}  Bb7 {[%clk 0:02:12]} 24. Nf4 {[%clk 0:01:40]}  Nf6 {[%clk 0:02:12]} 25. f3 {[%clk 0:01:40]}  g5 {[%clk 0:02:10]} 26. Nd3 {[%clk 0:01:40]}  h5 {[%clk 0:02:10]} 27. Nc5+ {[%clk 0:01:39]} 1-0


[Site "https://www.chess.com"]

[Event "Titled Tuesday Blitz March 07 Early 2023"]
[White "Jakubowski, Krzysztof"]
[Black "Mazurkiewicz, Michal"]
[WhiteFideId "1112848"]
[BlackFideId "1124943"]
[WhiteElo "2359"]
[BlackElo "2054"]
[Result "1-0"]
[Round "08"]
[TimeControl "180+2"]
[Date "2023.03.07"]
[WhiteClock "0:00:24"]
[BlackClock "0:00:10"]

1. e4 {[%clk 0:02:56]}  d6 {[%clk 0:02:59]} 2. d4 {[%clk 0:02:53]}  Nf6 {[%clk 0:03:00]} 3. Nc3 {[%clk 0:02:53]}  c6 {[%clk 0:03:00]} 4. f4 {[%clk 0:02:51]}  Qb6 {[%clk 0:03:00]} 5. Nf3 {[%clk 0:02:50]}  Bg4 {[%clk 0:03:00]} 6. h3 {[%clk 0:02:50]}  Bxf3 {[%clk 0:03:00]} 7. Qxf3 {[%clk 0:02:51]}  e6 {[%clk 0:02:56]} 8. g4 {[%clk 0:02:43]}  Qxd4 {[%clk 0:02:42]} 9. Be3 {[%clk 0:02:42]}  Qb4 {[%clk 0:02:42]} 10. O-O-O {[%clk 0:02:38]}  d5 {[%clk 0:02:42]} 11. exd5 {[%clk 0:02:27]}  Nxd5 {[%clk 0:02:38]} 12. Bd2 {[%clk 0:02:08]}  Qb6 {[%clk 0:02:28]} 13. f5 {[%clk 0:02:05]}  Nd7 {[%clk 0:02:27]} 14. fxe6 {[%clk 0:01:58]}  fxe6 {[%clk 0:02:28]} 15. Qe2 {[%clk 0:01:48]}  O-O-O {[%clk 0:02:07]} 16. Qxe6 {[%clk 0:01:43]}  Nc7 {[%clk 0:01:53]} 17. Qb3 {[%clk 0:01:30]}  Qxb3 {[%clk 0:01:13]} 18. axb3 {[%clk 0:01:29]}  Nf6 {[%clk 0:01:12]} 19. Bd3 {[%clk 0:01:16]}  Bd6 {[%clk 0:00:58]} 20. Rdf1 {[%clk 0:01:12]}  h6 {[%clk 0:00:51]} 21. Ne2 {[%clk 0:01:04]}  Ncd5 {[%clk 0:00:42]} 22. Nd4 {[%clk 0:00:59]}  Rhe8 {[%clk 0:00:34]} 23. Bg6 {[%clk 0:00:50]}  Re5 {[%clk 0:00:28]} 24. Nf5 {[%clk 0:00:45]}  Bf8 {[%clk 0:00:27]} 25. Re1 {[%clk 0:00:38]}  Rxe1+ {[%clk 0:00:22]} 26. Rxe1 {[%clk 0:00:37]}  Kd7 {[%clk 0:00:19]} 27. c4 {[%clk 0:00:31]}  Nb4 {[%clk 0:00:08]} 28. Bxb4 {[%clk 0:00:27]}  Bxb4 {[%clk 0:00:09]} 29. Rd1+ {[%clk 0:00:26]}  Kc7 {[%clk 0:00:09]} 30. Rxd8 {[%clk 0:00:25]}  Kxd8 {[%clk 0:00:10]} 31. Nxg7 {[%clk 0:00:24]}  Ne4 {[%clk 0:00:10]} 32. Bxe4 {[%clk 0:00:24]} 1-0


[Site "https://www.chess.com"]

[Event "Titled Tuesday Blitz March 07 Early 2023"]
[White "Nur-Mukhametova, Alisa"]
[Black "Bews, Steven"]
[WhiteFideId "54117739"]
[BlackFideId "2400529"]
[WhiteElo "1903"]
[BlackElo "2587"]
[Result "1-0"]
[Round "08"]
[TimeControl "180+2"]
[Date "2023.03.07"]
[WhiteClock "0:01:22"]
[BlackClock "0:01:41"]

1. d4 {[%clk 0:03:00]}  Nf6 {[%clk 0:02:59]} 2. c4 {[%clk 0:03:00]}  e6 {[%clk 0:02:59]} 3. Nf3 {[%clk 0:03:01]}  Bb4+ {[%clk 0:02:58]} 4. Nbd2 {[%clk 0:03:00]}  b6 {[%clk 0:02:58]} 5. a3 {[%clk 0:02:59]}  Bxd2+ {[%clk 0:02:59]} 6. Qxd2 {[%clk 0:02:59]}  Bb7 {[%clk 0:03:00]} 7. e3 {[%clk 0:02:58]}  d6 {[%clk 0:03:00]} 8. Be2 {[%clk 0:02:58]}  Nbd7 {[%clk 0:03:00]} 9. b4 {[%clk 0:02:57]}  O-O {[%clk 0:03:00]} 10. Bb2 {[%clk 0:02:57]}  Ne4 {[%clk 0:03:01]} 11. Qc2 {[%clk 0:02:57]}  f5 {[%clk 0:03:01]} 12. O-O {[%clk 0:02:56]}  Rf6 {[%clk 0:03:00]} 13. d5 {[%clk 0:02:54]}  Rg6 {[%clk 0:02:59]} 14. Nd4 {[%clk 0:02:42]}  Qh4 {[%clk 0:02:47]} 15. Nxe6 {[%clk 0:02:24]}  Rh6 {[%clk 0:02:36]} 16. h3 {[%clk 0:02:24]}  Nf8 {[%clk 0:02:27]} 17. Nxg7 {[%clk 0:01:53]}  Rg6 {[%clk 0:02:21]} 18. Nxf5 {[%clk 0:01:47]}  Qxh3 {[%clk 0:01:54]} 19. Ne7+ {[%clk 0:01:27]}  Kf7 {[%clk 0:01:49]} 20. Nxg6 {[%clk 0:01:27]}  Qh6 {[%clk 0:01:47]} 21. Nh8+ {[%clk 0:01:22]}  Kg8 {[%clk 0:01:41]} 22. Qxe4 {[%clk 0:01:22]} 1-0


[Site "https://www.chess.com"]

[Event "Titled Tuesday Blitz March 07 Early 2023"]
[White "Pinheiro, Iung Alicio de O."]
[Black "Devaev, Alexander"]
[WhiteFideId "2104350"]
[BlackFideId "4169395"]
[WhiteElo "2283"]
[BlackElo "2225"]
[Result "0-1"]
[Round "08"]
[TimeControl "180+2"]
[Date "2023.03.07"]
[WhiteClock "0:00:06"]
[BlackClock "0:00:08"]

1. e4 {[%clk 0:03:00]}  c6 {[%clk 0:02:59]} 2. d4 {[%clk 0:02:59]}  d5 {[%clk 0:03:00]} 3. e5 {[%clk 0:02:59]}  Bf5 {[%clk 0:02:59]} 4. h4 {[%clk 0:02:59]}  Qb6 {[%clk 0:02:58]} 5. g4 {[%clk 0:02:30]}  Bd7 {[%clk 0:02:57]} 6. Nc3 {[%clk 0:02:29]}  e6 {[%clk 0:02:57]} 7. Na4 {[%clk 0:02:27]}  Qc7 {[%clk 0:02:57]} 8. f4 {[%clk 0:02:13]}  h5 {[%clk 0:02:54]} 9. gxh5 {[%clk 0:02:13]}  Nh6 {[%clk 0:02:49]} 10. Bh3 {[%clk 0:02:11]}  Be7 {[%clk 0:02:49]} 11. Nf3 {[%clk 0:02:11]}  b6 {[%clk 0:02:48]} 12. Be3 {[%clk 0:02:04]}  c5 {[%clk 0:02:35]} 13. Nc3 {[%clk 0:02:03]}  a6 {[%clk 0:02:35]} 14. Ne2 {[%clk 0:02:01]}  Nc6 {[%clk 0:02:13]} 15. c3 {[%clk 0:01:55]}  Nf5 {[%clk 0:02:06]} 16. Bxf5 {[%clk 0:01:53]}  exf5 {[%clk 0:02:07]} 17. Ng3 {[%clk 0:01:22]}  Be6 {[%clk 0:02:01]} 18. a3 {[%clk 0:01:19]}  O-O-O {[%clk 0:01:54]} 19. b4 {[%clk 0:01:15]}  cxd4 {[%clk 0:01:39]} 20. cxd4 {[%clk 0:01:12]}  Kb7 {[%clk 0:01:35]} 21. Rc1 {[%clk 0:01:10]}  Qd7 {[%clk 0:01:36]} 22. Rh2 {[%clk 0:00:56]}  Rc8 {[%clk 0:01:18]} 23. Ng5 {[%clk 0:00:36]}  Na7 {[%clk 0:01:13]} 24. Rhc2 {[%clk 0:00:29]}  Rc4 {[%clk 0:00:49]} 25. Nf1 {[%clk 0:00:23]}  Nb5 {[%clk 0:00:36]} 26. Qd3 {[%clk 0:00:17]}  Rxh5 {[%clk 0:00:31]} 27. Nd2 {[%clk 0:00:14]}  Rxc2 {[%clk 0:00:29]} 28. Rxc2 {[%clk 0:00:13]}  Rxh4 {[%clk 0:00:28]} 29. Ngf3 {[%clk 0:00:11]}  Rh8 {[%clk 0:00:20]} 30. a4 {[%clk 0:00:10]}  Na7 {[%clk 0:00:19]} 31. a5 {[%clk 0:00:11]}  Rc8 {[%clk 0:00:15]} 32. axb6 {[%clk 0:00:10]}  Rxc2 {[%clk 0:00:14]} 33. Qxc2 {[%clk 0:00:10]}  Kxb6 {[%clk 0:00:14]} 34. Nb3 {[%clk 0:00:08]}  Bxb4+ {[%clk 0:00:13]} 35. Bd2 {[%clk 0:00:08]}  Qb5 {[%clk 0:00:13]} 36. Nc5 {[%clk 0:00:06]}  Nc6 {[%clk 0:00:08]} 0-1


[Site "https://www.chess.com"]

[Event "Titled Tuesday Blitz March 07 Early 2023"]
[White "Sokac, Marko"]
[Black "Staudenhocker43"]
[WhiteFideId "14531356"]
[WhiteElo "2355"]
[BlackElo "2435"]
[Result "0-1"]
[Round "08"]
[TimeControl "180+2"]
[Date "2023.03.07"]
[WhiteClock "0:00:04"]
[BlackClock "0:00:25"]

1. e4 {[%clk 0:02:57]}  c5 {[%clk 0:03:00]} 2. a3 {[%clk 0:02:57]}  g6 {[%clk 0:02:59]} 3. h4 {[%clk 0:02:57]}  Nc6 {[%clk 0:02:56]} 4. h5 {[%clk 0:02:57]}  Bg7 {[%clk 0:02:57]} 5. Bc4 {[%clk 0:02:52]}  e6 {[%clk 0:02:49]} 6. Nc3 {[%clk 0:02:49]}  a6 {[%clk 0:02:46]} 7. d3 {[%clk 0:02:44]}  b5 {[%clk 0:02:46]} 8. Ba2 {[%clk 0:02:44]}  Bb7 {[%clk 0:02:45]} 9. Nf3 {[%clk 0:02:42]}  Qc7 {[%clk 0:02:41]} 10. Be3 {[%clk 0:02:13]}  Nd4 {[%clk 0:02:35]} 11. Bxd4 {[%clk 0:02:00]}  cxd4 {[%clk 0:02:25]} 12. Ne2 {[%clk 0:02:00]}  e5 {[%clk 0:02:25]} 13. c3 {[%clk 0:01:56]}  dxc3 {[%clk 0:02:23]} 14. Nxc3 {[%clk 0:01:57]}  Ne7 {[%clk 0:02:21]} 15. Qd2 {[%clk 0:01:51]}  h6 {[%clk 0:02:10]} 16. hxg6 {[%clk 0:01:48]}  fxg6 {[%clk 0:02:10]} 17. Rc1 {[%clk 0:01:46]}  Qd6 {[%clk 0:02:08]} 18. Qe3 {[%clk 0:01:35]}  Rc8 {[%clk 0:02:05]} 19. O-O {[%clk 0:01:33]}  h5 {[%clk 0:01:59]} 20. Rfd1 {[%clk 0:01:33]}  Bh6 {[%clk 0:01:58]} 21. Qa7 {[%clk 0:01:11]}  Bxc1 {[%clk 0:01:48]} 22. Rxc1 {[%clk 0:01:12]}  Qb8 {[%clk 0:01:40]} 23. Qe3 {[%clk 0:01:10]}  Rf8 {[%clk 0:01:31]} 24. Qg5 {[%clk 0:01:07]}  Rxf3 {[%clk 0:01:30]} 25. gxf3 {[%clk 0:01:07]}  Qd6 {[%clk 0:01:29]} 26. Rd1 {[%clk 0:01:04]}  Rc5 {[%clk 0:01:17]} 27. Qh6 {[%clk 0:01:02]}  Kd8 {[%clk 0:01:15]} 28. Qf8+ {[%clk 0:01:02]}  Kc7 {[%clk 0:01:15]} 29. f4 {[%clk 0:00:51]}  exf4 {[%clk 0:01:12]} 30. d4 {[%clk 0:00:44]}  Rg5+ {[%clk 0:01:12]} 31. Kf1 {[%clk 0:00:45]}  Nc8 {[%clk 0:01:09]} 32. Qh6 {[%clk 0:00:39]}  Rg4 {[%clk 0:01:05]} 33. e5 {[%clk 0:00:37]}  Qe7 {[%clk 0:01:01]} 34. Bd5 {[%clk 0:00:35]}  Nb6 {[%clk 0:00:59]} 35. Bxb7 {[%clk 0:00:32]}  Kxb7 {[%clk 0:01:00]} 36. Ne4 {[%clk 0:00:30]}  f3 {[%clk 0:00:52]} 37. Nd6+ {[%clk 0:00:21]}  Ka7 {[%clk 0:00:51]} 38. Qe3 {[%clk 0:00:21]}  Qg5 {[%clk 0:00:47]} 39. Qxf3 {[%clk 0:00:05]}  Nd5 {[%clk 0:00:28]} 40. Qxd5 {[%clk 0:00:04]}  Rg1+ {[%clk 0:00:29]} 41. Ke2 {[%clk 0:00:05]}  Qg4+ {[%clk 0:00:29]} 42. Kd2 {[%clk 0:00:04]}  Qxd1+ {[%clk 0:00:28]} 43. Ke3 {[%clk 0:00:03]}  Re1+ {[%clk 0:00:25]} 44. Kf4 {[%clk 0:00:04]}  Qg4# {[%clk 0:00:25]} 0-1


[Site "https://www.chess.com"]

[Event "Titled Tuesday Blitz March 07 Early 2023"]
[White "Slade, Theodore"]
[Black "Kislov, Oleg"]
[WhiteFideId "426547"]
[BlackFideId "13503774"]
[WhiteElo "1964"]
[BlackElo "2186"]
[Result "1/2-1/2"]
[Round "08"]
[TimeControl "180+2"]
[Date "2023.03.07"]
[WhiteClock "0:00:53"]
[BlackClock "0:00:09"]

1. d4 {[%clk 0:03:00]}  Nf6 {[%clk 0:02:55]} 2. c4 {[%clk 0:03:01]}  e6 {[%clk 0:02:55]} 3. g3 {[%clk 0:03:01]}  d5 {[%clk 0:02:55]} 4. Bg2 {[%clk 0:03:02]}  Be7 {[%clk 0:02:48]} 5. Nf3 {[%clk 0:03:02]}  O-O {[%clk 0:02:48]} 6. O-O {[%clk 0:03:03]}  c6 {[%clk 0:02:45]} 7. Qc2 {[%clk 0:03:04]}  Nbd7 {[%clk 0:02:43]} 8. b3 {[%clk 0:03:04]}  b6 {[%clk 0:02:43]} 9. Bb2 {[%clk 0:03:03]}  Bb7 {[%clk 0:02:43]} 10. Nc3 {[%clk 0:03:04]}  Rc8 {[%clk 0:02:41]} 11. e4 {[%clk 0:03:04]}  dxe4 {[%clk 0:02:40]} 12. Nxe4 {[%clk 0:03:05]}  c5 {[%clk 0:02:38]} 13. Nxf6+ {[%clk 0:03:02]}  Bxf6 {[%clk 0:02:21]} 14. Ng5 {[%clk 0:02:58]}  Bxg5 {[%clk 0:02:15]} 15. Bxb7 {[%clk 0:02:59]}  Rc7 {[%clk 0:02:13]} 16. Bf3 {[%clk 0:02:52]}  cxd4 {[%clk 0:02:11]} 17. Bxd4 {[%clk 0:02:51]}  Bf6 {[%clk 0:02:11]} 18. Rad1 {[%clk 0:02:50]}  Bxd4 {[%clk 0:02:10]} 19. Rxd4 {[%clk 0:02:51]}  Qf6 {[%clk 0:02:06]} 20. Rfd1 {[%clk 0:02:51]}  Ne5 {[%clk 0:01:57]} 21. Be4 {[%clk 0:02:51]}  Nf3+ {[%clk 0:01:52]} 22. Bxf3 {[%clk 0:02:50]}  Qxf3 {[%clk 0:01:53]} 23. Rd8 {[%clk 0:02:46]}  Rc8 {[%clk 0:01:05]} 24. Rxf8+ {[%clk 0:02:46]}  Rxf8 {[%clk 0:01:04]} 25. Rd3 {[%clk 0:02:44]}  Qc6 {[%clk 0:01:03]} 26. Qd1 {[%clk 0:02:41]}  g6 {[%clk 0:01:01]} 27. Rd6 {[%clk 0:02:38]}  Qc5 {[%clk 0:00:59]} 28. Rd7 {[%clk 0:02:39]}  a5 {[%clk 0:00:56]} 29. Qd6 {[%clk 0:02:34]}  Qxd6 {[%clk 0:00:50]} 30. Rxd6 {[%clk 0:02:35]}  Rb8 {[%clk 0:00:50]} 31. Kg2 {[%clk 0:02:33]}  Kf8 {[%clk 0:00:50]} 32. Kf3 {[%clk 0:02:34]}  Ke7 {[%clk 0:00:50]} 33. Rd2 {[%clk 0:02:31]}  Rc8 {[%clk 0:00:43]} 34. g4 {[%clk 0:02:28]}  a4 {[%clk 0:00:43]} 35. g5 {[%clk 0:02:24]}  axb3 {[%clk 0:00:43]} 36. axb3 {[%clk 0:02:25]}  Rc5 {[%clk 0:00:41]} 37. h4 {[%clk 0:02:24]}  h6 {[%clk 0:00:33]} 38. Kg4 {[%clk 0:02:20]}  hxg5 {[%clk 0:00:32]} 39. hxg5 {[%clk 0:02:21]}  b5 {[%clk 0:00:32]} 40. cxb5 {[%clk 0:02:14]}  Rxb5 {[%clk 0:00:33]} 41. Rb2 {[%clk 0:02:11]}  Rb4+ {[%clk 0:00:33]} 42. Kg3 {[%clk 0:02:09]}  e5 {[%clk 0:00:33]} 43. f3 {[%clk 0:02:05]}  Ke6 {[%clk 0:00:34]} 44. Kg2 {[%clk 0:01:32]}  Kf5 {[%clk 0:00:33]} 45. Ra2 {[%clk 0:01:31]}  Kxg5 {[%clk 0:00:32]} 46. Rb2 {[%clk 0:01:17]}  f5 {[%clk 0:00:29]} 47. Kg3 {[%clk 0:01:15]}  e4 {[%clk 0:00:22]} 48. fxe4 {[%clk 0:01:10]}  Rxe4 {[%clk 0:00:20]} 49. b4 {[%clk 0:01:11]}  Re3+ {[%clk 0:00:17]} 50. Kf2 {[%clk 0:01:10]}  Re6 {[%clk 0:00:16]} 51. b5 {[%clk 0:01:11]}  Rb6 {[%clk 0:00:17]} 52. Ke3 {[%clk 0:01:11]}  f4+ {[%clk 0:00:11]} 53. Ke4 {[%clk 0:01:06]}  Re6+ {[%clk 0:00:11]} 54. Kd5 {[%clk 0:01:03]}  Re8 {[%clk 0:00:11]} 55. b6 {[%clk 0:01:03]}  f3 {[%clk 0:00:10]} 56. b7 {[%clk 0:01:03]}  Kg4 {[%clk 0:00:08]} 57. b8=Q {[%clk 0:01:00]}  Rxb8 {[%clk 0:00:08]} 58. Rxb8 {[%clk 0:01:01]}  f2 {[%clk 0:00:09]} 59. Rf8 {[%clk 0:01:01]}  Kg3 {[%clk 0:00:09]} 60. Ke4 {[%clk 0:00:54]}  Kg2 {[%clk 0:00:09]} 61. Ke3 {[%clk 0:00:50]}  f1=Q {[%clk 0:00:07]} 62. Rxf1 {[%clk 0:00:51]}  Kxf1 {[%clk 0:00:08]} 63. Kf4 {[%clk 0:00:51]}  Kg2 {[%clk 0:00:09]} 64. Kg5 {[%clk 0:00:52]}  Kf3 {[%clk 0:00:09]} 65. Kxg6 {[%clk 0:00:53]} 1/2-1/2


[Site "https://www.chess.com"]

[Event "Titled Tuesday Blitz March 07 Early 2023"]
[White "Benaddi, Mouhcine"]
[Black "Reprintsev, Alexander"]
[WhiteFideId "9001050"]
[BlackFideId "14100541"]
[WhiteElo "2036"]
[BlackElo "2229"]
[Result "0-1"]
[Round "08"]
[TimeControl "180+2"]
[Date "2023.03.07"]
[WhiteClock "0:02:02"]
[BlackClock "0:02:22"]

1. Nf3 {[%clk 0:03:00]}  Nc6 {[%clk 0:02:40]} 2. d4 {[%clk 0:03:00]}  d5 {[%clk 0:02:39]} 3. c4 {[%clk 0:02:59]}  e5 {[%clk 0:02:38]} 4. dxe5 {[%clk 0:02:57]}  d4 {[%clk 0:02:38]} 5. a3 {[%clk 0:02:52]}  g6 {[%clk 0:02:37]} 6. e3 {[%clk 0:02:50]}  Bg4 {[%clk 0:02:35]} 7. exd4 {[%clk 0:02:39]}  Bxf3 {[%clk 0:02:30]} 8. gxf3 {[%clk 0:02:31]}  Qxd4 {[%clk 0:02:28]} 9. Qxd4 {[%clk 0:02:16]}  Nxd4 {[%clk 0:02:27]} 10. Bd3 {[%clk 0:02:02]}  Nb3 {[%clk 0:02:22]} 0-1


[Site "https://www.chess.com"]